[Event "Titled Tuesday Blitz February 21 Early 2023"]
[White "Uzcategui Rodriguez, Alejandro"]
[Black "Buksa, Nataliya"]
[WhiteFideId "3903400"]
[BlackFideId "14123622"]
[WhiteElo "2255"]
[BlackElo "2406"]
[Result "1-0"]
[Round "03"]
[TimeControl "180+2"]
[Date "2023.02.21"]
[WhiteClock "0:00:05"]
[BlackClock "0:00:05"]

1. e4 {[%clk 0:03:00]}  c5 {[%clk 0:03:00]} 2. Nf3 {[%clk 0:03:00]}  Nc6 {[%clk 0:03:00]} 3. d4 {[%clk 0:03:01]}  cxd4 {[%clk 0:03:00]} 4. Nxd4 {[%clk 0:03:02]}  e5 {[%clk 0:03:01]} 5. Nb5 {[%clk 0:03:02]}  d6 {[%clk 0:03:01]} 6. N1c3 {[%clk 0:03:01]}  a6 {[%clk 0:03:01]} 7. Na3 {[%clk 0:02:57]}  Be7 {[%clk 0:03:01]} 8. g3 {[%clk 0:02:52]}  b5 {[%clk 0:03:00]} 9. Nd5 {[%clk 0:02:51]}  Nf6 {[%clk 0:02:56]} 10. Bg2 {[%clk 0:02:50]}  O-O {[%clk 0:02:51]} 11. c3 {[%clk 0:02:49]}  Nxd5 {[%clk 0:02:39]} 12. Qxd5 {[%clk 0:02:48]}  Bb7 {[%clk 0:02:39]} 13. Qd3 {[%clk 0:02:47]}  Bg5 {[%clk 0:02:36]} 14. O-O {[%clk 0:02:43]}  Bxc1 {[%clk 0:02:35]} 15. Raxc1 {[%clk 0:02:41]}  Qe7 {[%clk 0:02:35]} 16. Rcd1 {[%clk 0:02:41]}  Rad8 {[%clk 0:02:35]} 17. Nc2 {[%clk 0:02:41]}  Na5 {[%clk 0:02:34]} 18. Ne3 {[%clk 0:02:41]}  Bc6 {[%clk 0:02:33]} 19. Nf5 {[%clk 0:02:36]}  Qe6 {[%clk 0:02:32]} 20. Ne3 {[%clk 0:02:30]}  Nc4 {[%clk 0:02:29]} 21. Nxc4 {[%clk 0:02:29]}  bxc4 {[%clk 0:02:29]} 22. Qe2 {[%clk 0:02:26]}  d5 {[%clk 0:02:23]} 23. exd5 {[%clk 0:02:23]}  Bxd5 {[%clk 0:02:23]} 24. Bxd5 {[%clk 0:02:23]}  Rxd5 {[%clk 0:02:24]} 25. Rxd5 {[%clk 0:02:23]}  Qxd5 {[%clk 0:02:24]} 26. Rd1 {[%clk 0:02:23]}  Qc5 {[%clk 0:02:20]} 27. Rd2 {[%clk 0:02:22]}  h6 {[%clk 0:02:18]} 28. Qe4 {[%clk 0:02:20]}  Qb5 {[%clk 0:02:11]} 29. h4 {[%clk 0:02:08]}  Kh8 {[%clk 0:02:06]} 30. Qd5 {[%clk 0:01:59]}  Qa4 {[%clk 0:01:54]} 31. Qxe5 {[%clk 0:01:50]}  Qxa2 {[%clk 0:01:54]} 32. Qe7 {[%clk 0:01:50]}  Kg8 {[%clk 0:01:51]} 33. Kh2 {[%clk 0:01:40]}  Qb1 {[%clk 0:01:50]} 34. Kg2 {[%clk 0:01:35]}  Qf5 {[%clk 0:01:48]} 35. Rd8 {[%clk 0:01:23]}  Rxd8 {[%clk 0:01:44]} 36. Qxd8+ {[%clk 0:01:24]}  Kh7 {[%clk 0:01:44]} 37. Qd4 {[%clk 0:01:24]}  Qe6 {[%clk 0:01:42]} 38. Kf3 {[%clk 0:01:22]}  g6 {[%clk 0:01:37]} 39. Qe4 {[%clk 0:01:22]}  Qc8 {[%clk 0:01:32]} 40. h5 {[%clk 0:01:16]}  Qc7 {[%clk 0:01:18]} 41. hxg6+ {[%clk 0:01:00]}  fxg6 {[%clk 0:01:19]} 42. Qd5 {[%clk 0:01:00]}  h5 {[%clk 0:01:16]} 43. Kg2 {[%clk 0:00:57]}  Kh6 {[%clk 0:01:13]} 44. Qe6 {[%clk 0:00:55]}  Kg7 {[%clk 0:01:12]} 45. Qxa6 {[%clk 0:00:54]}  Qc5 {[%clk 0:01:07]} 46. Qb7+ {[%clk 0:00:53]}  Kf6 {[%clk 0:01:07]} 47. Qe4 {[%clk 0:00:51]}  Qb5 {[%clk 0:01:05]} 48. Kf3 {[%clk 0:00:38]}  g5 {[%clk 0:00:59]} 49. Qd4+ {[%clk 0:00:36]}  Ke6 {[%clk 0:00:58]} 50. Kg2 {[%clk 0:00:31]}  Qc6+ {[%clk 0:00:55]} 51. Kh2 {[%clk 0:00:30]}  Kf5 {[%clk 0:00:52]} 52. Qd1 {[%clk 0:00:23]}  Kg6 {[%clk 0:00:42]} 53. Qe2 {[%clk 0:00:23]}  g4 {[%clk 0:00:33]} 54. Qc2+ {[%clk 0:00:22]}  Kg5 {[%clk 0:00:32]} 55. b3 {[%clk 0:00:21]}  h4 {[%clk 0:00:28]} 56. Qd2+ {[%clk 0:00:16]}  Kh5 {[%clk 0:00:27]} 57. gxh4 {[%clk 0:00:16]}  Kxh4 {[%clk 0:00:21]} 58. bxc4 {[%clk 0:00:16]}  Qc7+ {[%clk 0:00:16]} 59. Kg1 {[%clk 0:00:15]}  Kh5 {[%clk 0:00:13]} 60. Qd5+ {[%clk 0:00:13]}  Kh4 {[%clk 0:00:13]} 61. c5 {[%clk 0:00:12]}  g3 {[%clk 0:00:09]} 62. Qd4+ {[%clk 0:00:08]}  Kh5 {[%clk 0:00:09]} 63. Qd5+ {[%clk 0:00:07]}  Kh4 {[%clk 0:00:09]} 64. Qd6 {[%clk 0:00:06]}  gxf2+ {[%clk 0:00:07]} 65. Kxf2 {[%clk 0:00:06]}  Qf7+ {[%clk 0:00:08]} 66. Ke3 {[%clk 0:00:06]}  Qf1 {[%clk 0:00:06]} 67. Kd4 {[%clk 0:00:06]}  Qd1+ {[%clk 0:00:06]} 68. Kc4 {[%clk 0:00:06]}  Qe2+ {[%clk 0:00:06]} 69. Kb4 {[%clk 0:00:05]}  Qb2+ {[%clk 0:00:06]} 70. Ka4 {[%clk 0:00:05]}  Qxc3 {[%clk 0:00:06]} 71. c6 {[%clk 0:00:05]}  Qc2+ {[%clk 0:00:04]} 72. Kb5 {[%clk 0:00:05]}  Qb3+ {[%clk 0:00:05]} 73. Qb4+ {[%clk 0:00:05]} 1-0


[Site "https://www.chess.com"]

[Event "Titled Tuesday Blitz February 21 Early 2023"]
[White "Degenbaev, Aziz"]
[Black "Rosh Jain"]
[WhiteFideId "13802640"]
[BlackFideId "25789465"]
[WhiteElo "2203"]
[BlackElo "2248"]
[Result "1-0"]
[Round "03"]
[TimeControl "180+2"]
[Date "2023.02.21"]
[WhiteClock "0:00:13"]
[BlackClock "0:00:17"]

1. e4 {[%clk 0:03:00]}  c5 {[%clk 0:02:20]} 2. Nf3 {[%clk 0:03:00]}  d6 {[%clk 0:02:20]} 3. d4 {[%clk 0:03:00]}  cxd4 {[%clk 0:02:20]} 4. Nxd4 {[%clk 0:03:01]}  Nf6 {[%clk 0:02:20]} 5. Nc3 {[%clk 0:03:02]}  a6 {[%clk 0:02:20]} 6. h3 {[%clk 0:03:02]}  e5 {[%clk 0:02:19]} 7. Nde2 {[%clk 0:03:02]}  Be7 {[%clk 0:02:17]} 8. g4 {[%clk 0:03:02]}  h6 {[%clk 0:02:16]} 9. Bg2 {[%clk 0:03:02]}  Be6 {[%clk 0:02:15]} 10. O-O {[%clk 0:03:02]}  Nbd7 {[%clk 0:02:15]} 11. Be3 {[%clk 0:03:01]}  O-O {[%clk 0:02:15]} 12. Qd2 {[%clk 0:02:57]}  b5 {[%clk 0:02:14]} 13. Rad1 {[%clk 0:02:48]}  Rc8 {[%clk 0:02:14]} 14. f4 {[%clk 0:02:39]}  exf4 {[%clk 0:02:13]} 15. Nxf4 {[%clk 0:02:40]}  Bc4 {[%clk 0:01:47]} 16. Rf2 {[%clk 0:02:37]}  Ne5 {[%clk 0:01:30]} 17. Ncd5 {[%clk 0:01:58]}  Bxd5 {[%clk 0:01:16]} 18. Nxd5 {[%clk 0:01:57]}  Nc4 {[%clk 0:01:08]} 19. Nxe7+ {[%clk 0:01:40]}  Qxe7 {[%clk 0:01:07]} 20. Qd4 {[%clk 0:01:41]}  Nxe3 {[%clk 0:01:07]} 21. Qxe3 {[%clk 0:01:42]}  Rfe8 {[%clk 0:01:05]} 22. c3 {[%clk 0:00:50]}  d5 {[%clk 0:00:59]} 23. Rxf6 {[%clk 0:00:26]}  Qxf6 {[%clk 0:00:57]} 24. Rxd5 {[%clk 0:00:26]}  Qe6 {[%clk 0:00:54]} 25. Qd4 {[%clk 0:00:23]}  Rc4 {[%clk 0:00:52]} 26. Qa7 {[%clk 0:00:23]}  Ra4 {[%clk 0:00:47]} 27. a3 {[%clk 0:00:22]}  Qf6 {[%clk 0:00:28]} 28. Qf2 {[%clk 0:00:19]}  Qg5 {[%clk 0:00:26]} 29. Rxg5 {[%clk 0:00:18]}  hxg5 {[%clk 0:00:26]} 30. Qc5 {[%clk 0:00:15]}  Rc4 {[%clk 0:00:25]} 31. Qxg5 {[%clk 0:00:14]}  Re6 {[%clk 0:00:23]} 32. h4 {[%clk 0:00:10]}  f6 {[%clk 0:00:21]} 33. Qd5 {[%clk 0:00:10]}  Kf7 {[%clk 0:00:20]} 34. g5 {[%clk 0:00:07]}  Rc7 {[%clk 0:00:18]} 35. g6+ {[%clk 0:00:07]}  Ke7 {[%clk 0:00:18]} 36. Qa8 {[%clk 0:00:06]}  Rd7 {[%clk 0:00:17]} 37. Qg8 {[%clk 0:00:06]}  Kd6 {[%clk 0:00:17]} 38. Bh3 {[%clk 0:00:05]}  Rde7 {[%clk 0:00:17]} 39. Bxe6 {[%clk 0:00:05]}  Rxe6 {[%clk 0:00:18]} 40. Qxg7 {[%clk 0:00:06]}  Ke5 {[%clk 0:00:18]} 41. Qf7 {[%clk 0:00:05]}  Rd6 {[%clk 0:00:17]} 42. g7 {[%clk 0:00:05]}  Kf4 {[%clk 0:00:16]} 43. g8=Q {[%clk 0:00:04]}  Rd1+ {[%clk 0:00:16]} 44. Kf2 {[%clk 0:00:04]}  Rd2+ {[%clk 0:00:16]} 45. Ke1 {[%clk 0:00:05]}  Rxb2 {[%clk 0:00:15]} 46. Qxf6+ {[%clk 0:00:06]}  Ke3 {[%clk 0:00:15]} 47. Qg3+ {[%clk 0:00:06]}  Kxe4 {[%clk 0:00:15]} 48. Qge5+ {[%clk 0:00:06]}  Kd3 {[%clk 0:00:15]} 49. Qd4+ {[%clk 0:00:07]}  Kc2 {[%clk 0:00:15]} 50. Qff2+ {[%clk 0:00:07]}  Kb3 {[%clk 0:00:15]} 51. Qxb2+ {[%clk 0:00:08]}  Kxb2 {[%clk 0:00:16]} 52. c4+ {[%clk 0:00:08]}  Kxa3 {[%clk 0:00:16]} 53. cxb5 {[%clk 0:00:09]}  axb5 {[%clk 0:00:17]} 54. h5 {[%clk 0:00:10]}  b4 {[%clk 0:00:18]} 55. h6 {[%clk 0:00:10]}  b3 {[%clk 0:00:18]} 56. Qa1+ {[%clk 0:00:10]}  Kb4 {[%clk 0:00:17]} 57. Qb1 {[%clk 0:00:11]}  b2 {[%clk 0:00:17]} 58. h7 {[%clk 0:00:12]}  Ka4 {[%clk 0:00:17]} 59. h8=Q {[%clk 0:00:13]}  Ka3 {[%clk 0:00:16]} 60. Qhxb2+ {[%clk 0:00:13]}  Ka4 {[%clk 0:00:17]} 61. Q1a1# {[%clk 0:00:13]} 1-0


[Site "https://www.chess.com"]

[Event "Titled Tuesday Blitz February 21 Early 2023"]
[White "Nugumanov, Bakhtiyar"]
[Black "Andreev, Konstantin"]
[WhiteFideId "13701797"]
[BlackFideId "24239305"]
[WhiteElo "2316"]
[BlackElo "2195"]
[Result "0-1"]
[Round "03"]
[TimeControl "180+2"]
[Date "2023.02.21"]
[WhiteClock "0:00:38"]
[BlackClock "0:01:28"]

1. Nf3 {[%clk 0:02:58]}  Nf6 {[%clk 0:02:56]} 2. c4 {[%clk 0:02:56]}  e6 {[%clk 0:02:55]} 3. g3 {[%clk 0:02:52]}  d5 {[%clk 0:02:55]} 4. Bg2 {[%clk 0:02:52]}  dxc4 {[%clk 0:02:53]} 5. Qa4+ {[%clk 0:02:51]}  Nbd7 {[%clk 0:02:50]} 6. Qxc4 {[%clk 0:02:48]}  a6 {[%clk 0:02:50]} 7. Qc2 {[%clk 0:02:44]}  c5 {[%clk 0:02:47]} 8. O-O {[%clk 0:02:43]}  Bd6 {[%clk 0:02:44]} 9. Nc3 {[%clk 0:02:28]}  O-O {[%clk 0:02:40]} 10. d4 {[%clk 0:02:12]}  cxd4 {[%clk 0:02:39]} 11. Nxd4 {[%clk 0:02:04]}  Ra7 {[%clk 0:02:38]} 12. Be3 {[%clk 0:01:42]}  Ng4 {[%clk 0:02:23]} 13. Bd2 {[%clk 0:01:26]}  Bc5 {[%clk 0:02:16]} 14. e3 {[%clk 0:01:14]}  Bxd4 {[%clk 0:01:58]} 15. exd4 {[%clk 0:01:14]}  b6 {[%clk 0:01:57]} 16. h3 {[%clk 0:01:10]}  Ngf6 {[%clk 0:01:54]} 17. d5 {[%clk 0:00:41]}  exd5 {[%clk 0:01:47]} 18. Nxd5 {[%clk 0:00:41]}  Nxd5 {[%clk 0:01:47]} 19. Bxd5 {[%clk 0:00:42]}  Nf6 {[%clk 0:01:39]} 20. Bg2 {[%clk 0:00:41]}  Rc7 {[%clk 0:01:35]} 21. Qb3 {[%clk 0:00:38]}  Qxd2 {[%clk 0:01:33]} 22. Qxb6 {[%clk 0:00:38]}  Rc2 {[%clk 0:01:28]} 0-1


[Site "https://www.chess.com"]

[Event "Titled Tuesday Blitz February 21 Early 2023"]
[White "UNSTOPPABLE_LEGEND"]
[Black "Hernandez Jimenez, Alexander Andres"]
[BlackFideId "3900452"]
[WhiteElo "2437"]
[BlackElo "2134"]
[Result "1-0"]
[Round "03"]
[TimeControl "180+2"]
[Date "2023.02.21"]
[WhiteClock "0:00:32"]
[BlackClock "0:00:44"]

1. d4 {[%clk 0:02:55]}  Nf6 {[%clk 0:02:59]} 2. c4 {[%clk 0:02:54]}  e6 {[%clk 0:02:59]} 3. Nc3 {[%clk 0:02:53]}  Bb4 {[%clk 0:02:59]} 4. e3 {[%clk 0:02:53]}  d5 {[%clk 0:02:50]} 5. a3 {[%clk 0:02:51]}  Bxc3+ {[%clk 0:02:50]} 6. bxc3 {[%clk 0:02:51]}  c5 {[%clk 0:02:50]} 7. cxd5 {[%clk 0:02:48]}  exd5 {[%clk 0:02:49]} 8. Bd3 {[%clk 0:02:48]}  O-O {[%clk 0:02:43]} 9. Ne2 {[%clk 0:02:49]}  c4 {[%clk 0:02:40]} 10. Bc2 {[%clk 0:02:48]}  Bg4 {[%clk 0:02:37]} 11. f3 {[%clk 0:02:46]}  Bh5 {[%clk 0:02:37]} 12. Nf4 {[%clk 0:02:42]}  Bg6 {[%clk 0:02:35]} 13. Nxg6 {[%clk 0:02:18]}  hxg6 {[%clk 0:02:35]} 14. O-O {[%clk 0:02:19]}  Nc6 {[%clk 0:02:35]} 15. Re1 {[%clk 0:02:19]}  Re8 {[%clk 0:02:34]} 16. e4 {[%clk 0:02:17]}  b5 {[%clk 0:02:33]} 17. e5 {[%clk 0:02:17]}  Nd7 {[%clk 0:02:32]} 18. f4 {[%clk 0:02:17]}  Nf8 {[%clk 0:02:31]} 19. Qg4 {[%clk 0:02:14]}  Qc8 {[%clk 0:02:27]} 20. f5 {[%clk 0:02:11]}  Ne7 {[%clk 0:02:25]} 21. e6 {[%clk 0:02:00]}  Nxf5 {[%clk 0:02:24]} 22. exf7+ {[%clk 0:01:40]}  Kxf7 {[%clk 0:02:24]} 23. Bf4 {[%clk 0:01:40]}  Qd7 {[%clk 0:01:59]} 24. Be5 {[%clk 0:01:34]}  Kg8 {[%clk 0:01:48]} 25. Rf1 {[%clk 0:01:29]}  Re7 {[%clk 0:01:17]} 26. Bxf5 {[%clk 0:01:12]}  gxf5 {[%clk 0:01:17]} 27. Rxf5 {[%clk 0:01:12]}  Rf7 {[%clk 0:01:09]} 28. Raf1 {[%clk 0:01:05]}  Rxf5 {[%clk 0:01:09]} 29. Rxf5 {[%clk 0:01:06]}  Qe7 {[%clk 0:01:03]} 30. Bxg7 {[%clk 0:00:37]}  Qe1+ {[%clk 0:00:44]} 31. Rf1 {[%clk 0:00:37]}  Qe3+ {[%clk 0:00:44]} 32. Kh1 {[%clk 0:00:37]}  Qe6 {[%clk 0:00:44]} 33. Rxf8+ {[%clk 0:00:32]} 1-0


[Site "https://www.chess.com"]

[Event "Titled Tuesday Blitz February 21 Early 2023"]
[White "Thomas, Anysia"]
[Black "Abdilkhair, Abilmansur"]
[WhiteFideId "670472"]
[BlackFideId "13716417"]
[WhiteElo "2147"]
[BlackElo "2268"]
[Result "0-1"]
[Round "03"]
[TimeControl "180+2"]
[Date "2023.02.21"]
[WhiteClock "0:00:02"]
[BlackClock "0:00:04"]

1. d4 {[%clk 0:03:00]}  e6 {[%clk 0:03:00]} 2. c4 {[%clk 0:03:01]}  Nf6 {[%clk 0:03:00]} 3. Nf3 {[%clk 0:03:01]}  d5 {[%clk 0:03:00]} 4. g3 {[%clk 0:03:02]}  c6 {[%clk 0:03:00]} 5. Bg2 {[%clk 0:03:02]}  dxc4 {[%clk 0:03:00]} 6. a4 {[%clk 0:02:51]}  b5 {[%clk 0:02:51]} 7. axb5 {[%clk 0:02:39]}  cxb5 {[%clk 0:02:52]} 8. Ne5 {[%clk 0:02:39]}  Nd5 {[%clk 0:02:52]} 9. e4 {[%clk 0:02:21]}  Nb6 {[%clk 0:02:29]} 10. Qh5 {[%clk 0:01:59]}  Bb4+ {[%clk 0:02:20]} 11. Nc3 {[%clk 0:01:52]}  O-O {[%clk 0:02:15]} 12. O-O {[%clk 0:01:52]}  Bb7 {[%clk 0:01:31]} 13. Nxb5 {[%clk 0:01:36]}  f6 {[%clk 0:01:30]} 14. Ng4 {[%clk 0:01:10]}  a6 {[%clk 0:01:23]} 15. Nc3 {[%clk 0:00:58]}  Qxd4 {[%clk 0:01:18]} 16. Be3 {[%clk 0:00:51]}  Qd6 {[%clk 0:01:18]} 17. e5 {[%clk 0:00:41]}  Qc7 {[%clk 0:01:08]} 18. Bxb7 {[%clk 0:00:26]}  Qxb7 {[%clk 0:01:09]} 19. exf6 {[%clk 0:00:26]}  gxf6 {[%clk 0:01:09]} 20. Nh6+ {[%clk 0:00:11]}  Kh8 {[%clk 0:01:08]} 21. Qg4 {[%clk 0:00:09]}  Nc6 {[%clk 0:00:20]} 22. Qxe6 {[%clk 0:00:09]}  Ne5 {[%clk 0:00:20]} 23. Qxb6 {[%clk 0:00:07]}  Nf3+ {[%clk 0:00:20]} 24. Kg2 {[%clk 0:00:05]}  Ne1+ {[%clk 0:00:16]} 25. Kh3 {[%clk 0:00:04]}  Qg2+ {[%clk 0:00:16]} 26. Kg4 {[%clk 0:00:03]}  Rg8+ {[%clk 0:00:08]} 27. Kf5 {[%clk 0:00:03]}  Qh3+ {[%clk 0:00:06]} 28. g4 {[%clk 0:00:03]}  Qf3+ {[%clk 0:00:04]} 29. Bf4 {[%clk 0:00:03]}  Rg6 {[%clk 0:00:02]} 30. Nf7+ {[%clk 0:00:02]}  Kg7 {[%clk 0:00:02]} 31. Qxf6+ {[%clk 0:00:02]}  Rxf6+ {[%clk 0:00:02]} 32. Kg5 {[%clk 0:00:02]}  Qxf4+ {[%clk 0:00:03]} 33. Kh4 {[%clk 0:00:02]}  Rh6+ {[%clk 0:00:04]} 0-1


[Site "https://www.chess.com"]

[Event "Titled Tuesday Blitz February 21 Early 2023"]
[White "Simonovic, Miroslav"]
[Black "Silvestre, Christian"]
[WhiteFideId "919152"]
[BlackFideId "30956269"]
[WhiteElo "2082"]
[BlackElo "1942"]
[Result "0-1"]
[Round "03"]
[TimeControl "180+2"]
[Date "2023.02.21"]
[WhiteClock "0:00:01"]
[BlackClock "0:00:29"]

1. d4 {[%clk 0:02:55]}  e5 {[%clk 0:02:47]} 2. c3 {[%clk 0:02:52]}  exd4 {[%clk 0:02:38]} 3. cxd4 {[%clk 0:02:52]}  d5 {[%clk 0:02:38]} 4. Nc3 {[%clk 0:02:53]}  c6 {[%clk 0:02:37]} 5. Nf3 {[%clk 0:02:53]}  Nf6 {[%clk 0:02:36]} 6. Bg5 {[%clk 0:02:53]}  h6 {[%clk 0:02:36]} 7. Bh4 {[%clk 0:02:52]}  Bd6 {[%clk 0:02:36]} 8. Bg3 {[%clk 0:02:52]}  Bf5 {[%clk 0:02:35]} 9. e3 {[%clk 0:02:52]}  Bxg3 {[%clk 0:02:32]} 10. hxg3 {[%clk 0:02:53]}  Nbd7 {[%clk 0:02:32]} 11. Bd3 {[%clk 0:02:53]}  Bxd3 {[%clk 0:02:32]} 12. Qxd3 {[%clk 0:02:54]}  Qe7 {[%clk 0:02:31]} 13. O-O-O {[%clk 0:02:53]}  Ne4 {[%clk 0:02:30]} 14. Rdf1 {[%clk 0:02:41]}  Ndf6 {[%clk 0:02:29]} 15. Nd2 {[%clk 0:02:40]}  Nxc3 {[%clk 0:02:22]} 16. Qxc3 {[%clk 0:02:40]}  Rc8 {[%clk 0:02:19]} 17. Kb1 {[%clk 0:02:32]}  O-O {[%clk 0:02:19]} 18. f3 {[%clk 0:02:26]}  c5 {[%clk 0:02:16]} 19. dxc5 {[%clk 0:02:23]}  Rxc5 {[%clk 0:02:17]} 20. Qd3 {[%clk 0:02:22]}  Rc6 {[%clk 0:02:13]} 21. Nb3 {[%clk 0:02:10]}  Re8 {[%clk 0:02:09]} 22. Re1 {[%clk 0:02:09]}  Re6 {[%clk 0:02:08]} 23. g4 {[%clk 0:01:01]}  Rxe3 {[%clk 0:02:03]} 24. Rxe3 {[%clk 0:01:02]}  Qxe3 {[%clk 0:02:03]} 25. Rd1 {[%clk 0:01:01]}  Qxd3+ {[%clk 0:02:00]} 26. Rxd3 {[%clk 0:01:02]}  Re2 {[%clk 0:02:00]} 27. Rd2 {[%clk 0:01:02]}  Rxd2 {[%clk 0:01:58]} 28. Nxd2 {[%clk 0:01:03]}  Kf8 {[%clk 0:01:57]} 29. Kc2 {[%clk 0:01:04]}  Ke7 {[%clk 0:01:57]} 30. Kd3 {[%clk 0:01:04]}  Kd6 {[%clk 0:01:51]} 31. Kd4 {[%clk 0:01:01]}  Ne8 {[%clk 0:01:51]} 32. Nf1 {[%clk 0:00:54]}  Nc7 {[%clk 0:01:51]} 33. Ne3 {[%clk 0:00:54]}  Ne6+ {[%clk 0:01:48]} 34. Kd3 {[%clk 0:00:54]}  Ke5 {[%clk 0:01:44]} 35. g3 {[%clk 0:00:53]}  Nc5+ {[%clk 0:01:36]} 36. Kd2 {[%clk 0:00:47]}  g6 {[%clk 0:01:34]} 37. b4 {[%clk 0:00:45]}  Ne6 {[%clk 0:01:29]} 38. Kd3 {[%clk 0:00:43]}  Kd6 {[%clk 0:01:22]} 39. f4 {[%clk 0:00:43]}  Nd8 {[%clk 0:01:18]} 40. a3 {[%clk 0:00:42]}  Nc6 {[%clk 0:01:16]} 41. Nc2 {[%clk 0:00:26]}  a6 {[%clk 0:01:15]} 42. Ne1 {[%clk 0:00:19]}  Na7 {[%clk 0:01:13]} 43. Nc2 {[%clk 0:00:17]}  Nb5 {[%clk 0:01:13]} 44. a4 {[%clk 0:00:17]}  Nc7 {[%clk 0:01:13]} 45. Nd4 {[%clk 0:00:17]}  Ne6 {[%clk 0:01:12]} 46. Nf3 {[%clk 0:00:15]}  a5 {[%clk 0:01:07]} 47. bxa5 {[%clk 0:00:13]}  Nc5+ {[%clk 0:01:07]} 48. Kd4 {[%clk 0:00:14]}  Nb3+ {[%clk 0:01:06]} 49. Kd3 {[%clk 0:00:10]}  Nxa5 {[%clk 0:01:05]} 50. Ne5 {[%clk 0:00:11]}  Ke6 {[%clk 0:01:03]} 51. Kd4 {[%clk 0:00:11]}  Nb3+ {[%clk 0:00:58]} 52. Kc3 {[%clk 0:00:11]}  Nc5 {[%clk 0:00:58]} 53. Kb4 {[%clk 0:00:11]}  Ne4 {[%clk 0:00:58]} 54. Kb5 {[%clk 0:00:09]}  Nxg3 {[%clk 0:00:55]} 55. Nd3 {[%clk 0:00:07]}  Kd6 {[%clk 0:00:52]} 56. Kb6 {[%clk 0:00:07]}  h5 {[%clk 0:00:51]} 57. gxh5 {[%clk 0:00:06]}  gxh5 {[%clk 0:00:52]} 58. Kxb7 {[%clk 0:00:06]}  h4 {[%clk 0:00:52]} 59. a5 {[%clk 0:00:06]}  h3 {[%clk 0:00:52]} 60. a6 {[%clk 0:00:07]}  h2 {[%clk 0:00:52]} 61. Nf2 {[%clk 0:00:07]}  Ne4 {[%clk 0:00:53]} 62. Nh1 {[%clk 0:00:05]}  Nc5+ {[%clk 0:00:53]} 63. Kb6 {[%clk 0:00:05]}  Nxa6 {[%clk 0:00:52]} 64. Kxa6 {[%clk 0:00:06]}  d4 {[%clk 0:00:52]} 65. Kb5 {[%clk 0:00:05]}  d3 {[%clk 0:00:52]} 66. Ng3 {[%clk 0:00:05]}  Kd5 {[%clk 0:00:44]} 67. Kb4 {[%clk 0:00:05]}  d2 {[%clk 0:00:43]} 68. Nf1 {[%clk 0:00:04]}  h1=Q {[%clk 0:00:41]} 69. Nxd2 {[%clk 0:00:04]}  Qe1 {[%clk 0:00:40]} 70. Kc3 {[%clk 0:00:03]}  Qe3+ {[%clk 0:00:38]} 71. Kc2 {[%clk 0:00:03]}  Qxf4 {[%clk 0:00:38]} 72. Kd3 {[%clk 0:00:04]}  Qg3+ {[%clk 0:00:33]} 73. Ke2 {[%clk 0:00:04]}  f5 {[%clk 0:00:33]} 74. Nf1 {[%clk 0:00:04]}  Qg2+ {[%clk 0:00:33]} 75. Ke1 {[%clk 0:00:03]}  f4 {[%clk 0:00:32]} 76. Nd2 {[%clk 0:00:01]}  f3 {[%clk 0:00:29]} 0-1


[Site "https://www.chess.com"]

[Event "Titled Tuesday Blitz February 21 Early 2023"]
[White "Begunov, Konstantin"]
[Black "Seifert, Henryk"]
[WhiteFideId "4118510"]
[BlackFideId "1100963"]
[WhiteElo "2325"]
[BlackElo "2106"]
[Result "1-0"]
[Round "03"]
[TimeControl "180+2"]
[Date "2023.02.21"]
[WhiteClock "0:00:31"]
[BlackClock "0:00:08"]

1. d4 {[%clk 0:03:00]}  d5 {[%clk 0:02:58]} 2. c4 {[%clk 0:03:00]}  c6 {[%clk 0:02:57]} 3. Nc3 {[%clk 0:03:01]}  Nf6 {[%clk 0:02:49]} 4. Nf3 {[%clk 0:03:01]}  a6 {[%clk 0:02:49]} 5. cxd5 {[%clk 0:02:58]}  cxd5 {[%clk 0:02:48]} 6. Bf4 {[%clk 0:02:59]}  Nc6 {[%clk 0:02:45]} 7. e3 {[%clk 0:02:59]}  Bg4 {[%clk 0:02:44]} 8. h3 {[%clk 0:03:00]}  Bxf3 {[%clk 0:02:43]} 9. Qxf3 {[%clk 0:03:01]}  e6 {[%clk 0:02:42]} 10. Bd3 {[%clk 0:03:01]}  Bd6 {[%clk 0:02:42]} 11. Bg5 {[%clk 0:03:02]}  Be7 {[%clk 0:02:37]} 12. O-O {[%clk 0:03:01]}  h6 {[%clk 0:02:37]} 13. Bf4 {[%clk 0:02:58]}  Bd6 {[%clk 0:02:32]} 14. Rfc1 {[%clk 0:02:44]}  Bxf4 {[%clk 0:02:27]} 15. Qxf4 {[%clk 0:02:45]}  O-O {[%clk 0:02:25]} 16. Na4 {[%clk 0:01:50]}  Rc8 {[%clk 0:02:20]} 17. Nc5 {[%clk 0:01:47]}  Qc7 {[%clk 0:01:51]} 18. Qf3 {[%clk 0:01:30]}  Nd7 {[%clk 0:01:42]} 19. a3 {[%clk 0:01:23]}  Nxc5 {[%clk 0:01:39]} 20. Rxc5 {[%clk 0:01:24]}  Qb8 {[%clk 0:01:20]} 21. Rac1 {[%clk 0:01:22]}  Ne7 {[%clk 0:01:14]} 22. b4 {[%clk 0:01:02]}  b6 {[%clk 0:01:08]} 23. R5c2 {[%clk 0:00:43]}  Rxc2 {[%clk 0:01:05]} 24. Rxc2 {[%clk 0:00:44]}  Rc8 {[%clk 0:01:01]} 25. Qd1 {[%clk 0:00:44]}  Rxc2 {[%clk 0:00:48]} 26. Qxc2 {[%clk 0:00:45]}  b5 {[%clk 0:00:42]} 27. Qc5 {[%clk 0:00:44]}  Qb7 {[%clk 0:00:38]} 28. Bc2 {[%clk 0:00:38]}  g6 {[%clk 0:00:36]} 29. a4 {[%clk 0:00:38]}  Kg7 {[%clk 0:00:24]} 30. axb5 {[%clk 0:00:34]}  axb5 {[%clk 0:00:22]} 31. Bd3 {[%clk 0:00:34]}  Nc6 {[%clk 0:00:15]} 32. Bxb5 {[%clk 0:00:34]}  Na7 {[%clk 0:00:13]} 33. Bd3 {[%clk 0:00:34]}  Nc6 {[%clk 0:00:11]} 34. b5 {[%clk 0:00:34]}  Na5 {[%clk 0:00:11]} 35. b6 {[%clk 0:00:32]}  h5 {[%clk 0:00:08]} 36. Qxa5 {[%clk 0:00:31]} 1-0


[Site "https://www.chess.com"]

[Event "Titled Tuesday Blitz February 21 Early 2023"]
[White "Lucassen, Mickey"]
[Black "Dias, Joao Batista"]
[WhiteFideId "12919110"]
[BlackFideId "2108240"]
[WhiteElo "2023"]
[BlackElo "1796"]
[Result "1-0"]
[Round "03"]
[TimeControl "180+2"]
[Date "2023.02.21"]
[WhiteClock "0:02:35"]
[BlackClock "0:01:49"]

1. d4 {[%clk 0:03:00]}  d5 {[%clk 0:02:35]} 2. Nc3 {[%clk 0:02:57]}  Nf6 {[%clk 0:02:34]} 3. Bf4 {[%clk 0:02:56]}  e6 {[%clk 0:02:33]} 4. Nb5 {[%clk 0:02:55]}  Na6 {[%clk 0:02:29]} 5. e3 {[%clk 0:02:55]}  Bd6 {[%clk 0:02:25]} 6. Nxd6+ {[%clk 0:02:54]}  cxd6 {[%clk 0:02:25]} 7. Bxa6 {[%clk 0:02:53]}  bxa6 {[%clk 0:02:25]} 8. Nf3 {[%clk 0:02:53]}  O-O {[%clk 0:02:25]} 9. O-O {[%clk 0:02:53]}  Re8 {[%clk 0:02:25]} 10. c3 {[%clk 0:02:54]}  e5 {[%clk 0:02:25]} 11. dxe5 {[%clk 0:02:54]}  dxe5 {[%clk 0:02:25]} 12. Bxe5 {[%clk 0:02:54]}  Bg4 {[%clk 0:02:24]} 13. Bg3 {[%clk 0:02:54]}  Ne4 {[%clk 0:02:21]} 14. Qd4 {[%clk 0:02:51]}  Qd7 {[%clk 0:02:06]} 15. Ne5 {[%clk 0:02:46]}  Qe6 {[%clk 0:02:04]} 16. Nxg4 {[%clk 0:02:43]}  Qxg4 {[%clk 0:02:03]} 17. f3 {[%clk 0:02:38]}  Nxg3 {[%clk 0:01:52]} 18. Qxg4 {[%clk 0:02:35]}  Ne2+ {[%clk 0:01:49]} 1-0


[Site "https://www.chess.com"]